bitfinex-derivatives/quotes_SOLF0:USTF0_20260227
["timestamp","ask_amount","ask_price","bid_price","bid_amount"]
[1772192180974,4.48651658,83.906,83.844,4.288691]
[1772192181384,4.48651658,83.925,83.844,4.288691]
[1772192181588,10.7243,83.919,83.865,10.7311]
[1772192182585,11.44,83.924,83.861,4.288691]
[1772192183090,11.44,83.924,83.88,4.288691]
[1772192184090,11.44,83.924,83.841,4.288691]
[1772192184890,11.44,83.924,83.863,4.288691]
[1772192185389,11.44,83.924,83.89,10.7279]
[1772192186095,4.48651658,83.923,83.868,10.7307]
[1772192187488,4.48651658,83.923,83.861,4.288691]
[1772192187686,4.48651658,83.921,83.861,4.288691]
[1772192188092,4.48651658,83.921,83.821,4.288691]
[1772192188292,4.48651658,83.912,83.821,4.288691]
[1772192189287,4.48651658,83.912,83.853,10.7327]
[1772192189484,4.48651658,83.912,83.847,4.288691]
[1772192189890,10.7253,83.911,83.85,10.733]
[1772192190190,10.7253,83.911,83.847,4.288691]
[1772192190489,4.48651658,83.912,83.858,10.732]
[1772192190691,4.48651658,83.912,83.847,4.288691]
[1772192190891,4.48651658,83.909,83.825,4.288691]
[1772192191889,10.7273,83.896,83.842,10.7341]
[1772192192090,4.48651658,83.895,83.825,4.288691]
[1772192192496,4.48651658,83.916,83.843,4.288691]
[1772192193392,4.48651658,83.898,83.826,4.288691]
[1772192193999,4.48651658,83.888,83.81,5.36315773]
[1772192194195,4.48651658,83.888,83.803,4.288691]
[1772192195397,4.48651658,83.877,83.821,10.7367]
[1772192195802,4.48651658,83.877,83.813,10.7378]
[1772192196208,4.48651658,83.877,83.803,4.288691]
[1772192196698,10.7317,83.861,83.812,10.7379]
[1772192197099,4.48651658,83.877,83.803,4.288691]
[1772192197300,10.7309,83.868,83.82,10.7369]
[1772192197502,4.48651658,83.877,83.803,4.288691]
[1772192199400,10.7308,83.868,83.805,4.25662289]
[1772192199606,4.48651658,83.877,83.805,4.25662289]
[1772192200403,10.7307,83.869,83.809,4.54880737]
[1772192200603,4.48651658,83.877,83.809,4.54880737]
[1772192201001,10.7316,83.862,83.809,4.54880737]
[1772192201207,4.26192185,83.861,83.809,4.54880737]
[1772192201399,4.26192185,83.879,83.809,4.54880737]
[1772192201599,10.7309,83.868,83.809,4.54880737]
[1772192201800,4.26192185,83.879,83.809,4.54880737]
[1772192202007,4.26192185,83.876,83.781,4.54880737]
[1772192202205,4.26192185,83.86,83.781,4.54880737]
[1772192202612,10.7332,83.849,83.787,4.54880737]
[1772192202808,4.26192185,83.86,83.787,4.54880737]
[1772192203310,4.26192185,83.879,83.801,4.54880737]
[1772192203906,6.64383036,83.9,83.813,4.54880737]
[1772192203907,4.26192185,83.899,83.813,4.54880737]
[1772192204612,4.26192185,83.899,83.836,4.54880737]
[1772192205104,10.7289,83.883,83.836,4.54880737]
[1772192205506,4.26192185,83.899,83.818,4.54880737]
[1772192205709,10.7299,83.875,83.818,4.54880737]
[1772192205904,10.7299,83.875,83.803,10.739]
[1772192205905,4.26192185,83.875,83.802,4.54880737]
[1772192206505,4.26192185,83.856,83.802,4.54880737]
[1772192207103,10.7319,83.86,83.802,4.54880737]
[1772192207307,4.26192185,83.873,83.802,4.54880737]
[1772192207611,4.26192185,83.861,83.802,4.54880737]
[1772192208315,10.7329,83.852,83.802,4.54880737]
[1772192208516,4.26192185,83.852,83.802,4.54880737]
[1772192209504,4.26192185,83.877,83.802,4.54880737]
[1772192210516,4.26192185,83.864,83.812,10.7379]
[1772192211416,4.26192185,83.862,83.812,10.7379]
[1772192211811,4.26192185,83.862,83.802,4.54880737]
[1772192212408,4.26192185,83.888,83.802,4.54880737]
[1772192213017,4.26192185,83.888,83.79,26.84706719]
[1772192213018,10.7286,83.886,83.834,10.735]
[1772192213221,4.26192185,83.888,83.824,4.54880737]
[1772192213519,4.26192185,83.888,83.842,10.734]
[1772192215523,15.07387311,83.904,83.85,10.733]
[1772192215821,4.34757311,83.903,83.85,10.733]
[1772192216520,10.7265,83.902,83.85,10.733]
[1772192216722,4.34757311,83.899,83.839,10.7344]
[1772192217318,10.729,83.882,83.839,10.7344]
[1772192217517,4.34757311,83.899,83.846,10.7336]
[1772192217920,10.7278,83.892,83.846,10.7336]
[1772192218223,10.7278,83.892,83.838,10.7346]
[1772192218422,4.34757311,83.899,83.823,4.47894472]
[1772192218619,4.34757311,83.884,83.823,4.47894472]
[1772192220619,10.7297,83.877,83.823,4.47894472]
[1772192220821,4.34757311,83.877,83.823,4.47894472]
[1772192221311,4.34757311,83.899,83.823,4.47894472]
[1772192222019,4.34757311,83.897,83.841,4.47894472]
[1772192222224,4.34757311,83.897,83.8,6.64383036]
[1772192222225,4.34757311,83.897,83.801,4.47894472]
[1772192222617,4.34757311,83.882,83.818,4.47894472]
[1772192223816,4.34757311,83.882,83.833,10.7352]
[1772192224623,6.64383036,83.9,83.818,4.47894472]
[1772192224821,4.34757311,83.902,83.818,4.47894472]
[1772192225021,10.7273,83.895,83.818,4.47894472]
[1772192225217,4.34757311,83.902,83.849,10.7331]
[1772192225422,4.34757311,83.902,83.835,4.47894472]
[1772192225621,4.34757311,83.894,83.835,4.47894472]
[1772192225818,4.34757311,83.894,83.848,10.7333]
[1772192226026,4.34757311,83.894,83.835,4.47894472]
[1772192226224,15.07297311,83.91,83.835,4.47894472]
[1772192226419,4.34757311,83.91,83.835,4.47894472]
[1772192227121,4.34757311,83.896,83.835,4.47894472]
[1772192227730,10.7258,83.907,83.835,4.47894472]
[1772192228425,10.7258,83.907,83.86,10.7317]
[1772192228625,10.7267,83.901,83.851,4.47894472]
[1772192228827,4.34757311,83.912,83.851,4.47894472]
[1772192229019,4.34757311,83.912,83.861,10.7317]
[1772192229215,4.34757311,83.912,83.851,4.47894472]
[1772192229723,4.34757311,83.912,83.868,10.7308]
[1772192229926,4.34757311,83.912,83.851,4.47894472]
[1772192230428,4.34757311,83.912,83.86,10.7317]
[1772192231017,10.7261,83.905,83.86,10.7317]
[1772192231619,4.28695179,83.898,83.835,4.56457333]
[1772192232619,4.28695179,83.919,83.835,4.56457333]
[1772192233323,4.28695179,83.899,83.804,4.56457333]
[1772192233523,4.28695179,83.898,83.804,4.56457333]
[1772192233724,6.62983981,83.9,83.804,4.56457333]
[1772192233725,4.28695179,83.895,83.804,4.56457333]
[1772192234927,6.62983981,83.86,83.804,4.56457333]
[1772192235124,4.28695179,83.859,83.761,4.56457333]
[1772192235430,4.28695179,83.859,83.787,4.56457333]
[1772192236231,10.98,83.858,83.787,4.56457333]
[1772192238035,10.98,83.858,83.814,10.7376]
[1772192238823,10.98,83.858,83.807,10.7386]
[1772192239324,10.98,83.858,83.802,4.56457333]
[1772192239923,4.28695179,83.857,83.781,4.56457333]
[1772192240432,4.28695179,83.844,83.793,10.7403]
[1772192241226,4.28695179,83.844,83.785,10.7414]
[1772192241838,4.28695179,83.844,83.791,10.7405]
[1772192242033,4.28695179,83.844,83.781,4.56457333]
[1772192242429,10.734,83.843,83.79,10.7407]
[1772192243239,4.28695179,83.844,83.79,4.56457333]
[1772192243630,4.28695179,83.844,83.796,10.7399]
[1772192243829,10.734,83.843,83.79,4.56457333]
[1772192244431,10.734,83.843,83.76,62.0]
[1772192244432,4.28695179,83.839,83.774,4.56457333]
[1772192244932,10.7348,83.837,83.787,10.7411]
[1772192247238,4.28695179,83.827,83.78,15.30657333]
[1772192247436,4.28695179,83.827,83.74,21.4942]
[1772192247437,4.28695179,83.819,83.748,4.56457333]
[1772192248339,6.62983981,83.83,83.695,21.5058]
[1772192248340,4.28695179,83.795,83.736,4.56457333]
[1772192248532,4.28695179,83.829,83.736,4.56457333]
[1772192249433,10.7373,83.818,83.768,10.7436]
[1772192249833,15.02425179,83.818,83.768,10.7436]
[1772192250230,4.28695179,83.818,83.731,4.56457333]
[1772192250939,4.28695179,83.793,83.735,4.56457333]
[1772192251132,4.28695179,83.793,83.57,502.5568]
[1772192251133,6.62983981,83.79,83.701,4.56457333]
[1772192251435,4.28695179,83.779,83.703,4.56457333]
[1772192252240,4.28695179,83.779,83.712,4.56457333]
[1772192253030,4.28695179,83.803,83.727,4.56457333]
[1772192253436,4.28695179,83.801,83.729,10.7486]
[1772192253636,4.28695179,83.801,83.73,4.56457333]
[1772192254342,4.28695179,83.782,83.73,4.56457333]
[1772192254537,4.28695179,83.782,83.717,4.56457333]
[1772192255546,4.28695179,83.778,83.717,4.56457333]
[1772192255947,4.28695179,83.778,83.696,4.56457333]
[1772192256143,4.28695179,83.774,83.696,4.56457333]
[1772192256344,4.28695179,83.774,83.699,4.56457333]
[1772192256942,4.28695179,83.76,83.699,4.56457333]
[1772192257447,4.28695179,83.759,83.699,4.56457333]
[1772192257947,4.28695179,83.77,83.702,4.56457333]
[1772192258647,4.28695179,83.77,83.703,4.51760408]
[1772192259250,15.03035179,83.77,83.703,4.51760408]
[1772192259452,4.20287154,83.769,83.703,4.51760408]
[1772192260846,4.20287154,83.769,83.705,4.28803512]
[1772192261144,4.20135277,83.785,83.705,4.28803512]
[1772192261342,4.20135277,83.785,83.725,10.749]
[1772192261543,4.20135277,83.785,83.672,21.5118]
[1772192261544,4.20135277,83.779,83.709,4.28803512]
[1772192262541,4.20135277,83.779,83.721,4.28803512]
[1772192263142,4.20135277,83.779,83.723,10.7493]
[1772192263350,4.20135277,83.779,83.724,4.28803512]
[1772192263543,4.20135277,83.797,83.742,4.28803512]
[1772192263947,292.62860973,83.803,83.742,4.28803512]
[1772192264150,4.20135277,83.802,83.742,15.03483512]
[1772192264651,4.20135277,83.802,83.75,4.28803512]
[1772192264951,292.62860973,83.803,83.75,4.28803512]
[1772192265153,4.20135277,83.802,83.75,4.28803512]
[1772192265448,4.20135277,83.8,83.734,4.28803512]
[1772192265651,4.20135277,83.789,83.691,4.28803512]
[1772192265858,4.20135277,83.787,83.721,4.28803512]
[1772192266356,4.20135277,83.776,83.721,4.28803512]
[1772192267449,4.20135277,83.776,83.721,15.03753512]
[1772192267655,4.20135277,83.776,83.722,4.28803512]
[1772192268450,4.20135277,83.793,83.734,4.28803512]
[1772192269954,10.7407,83.791,83.735,10.7478]
[1772192270149,4.20135277,83.79,83.735,10.7478]
[1772192270754,4.20135277,83.79,83.737,10.7475]
[1772192271455,4.20135277,83.79,83.745,10.7465]
[1772192272154,4.20135277,83.79,83.736,4.28803512]
[1772192272658,4.20135277,83.788,83.739,10.7473]
[1772192274056,292.62860973,83.803,83.746,4.28803512]
[1772192274659,292.62860973,83.803,83.764,4.28803512]
[1772192275359,4.20135277,83.828,83.764,4.28803512]
[1772192275554,10.7386,83.807,83.754,10.7453]
[1772192275858,4.20135277,83.806,83.748,4.28803512]
[1772192276162,4.20135277,83.806,83.766,10.7438]
[1772192277360,31.88299278,83.85,83.772,4.28803512]
[1772192277361,4.20135277,83.829,83.772,4.28803512]
[1772192278858,4.20135277,83.849,83.787,4.28803512]
[1772192280168,4.20135277,83.849,83.792,10.7405]
[1772192280169,10.7337,83.846,83.792,10.7405]
[1772192280368,4.20135277,83.845,83.787,4.28803512]
[1772192280669,4.20135277,83.798,83.717,4.28803512]
[1772192280869,4.20135277,83.759,83.682,4.28803512]
[1772192281075,4.20135277,83.758,83.682,4.28803512]
[1772192281269,4.20135277,83.758,83.698,10.7525]
[1772192281469,4.20135277,83.758,83.682,4.28803512]
[1772192282964,4.20135277,83.754,83.689,4.28803512]
[1772192283772,4.20135277,83.754,83.69,4.28803512]
[1772192284573,4.20135277,83.754,83.692,15.04133512]
[1772192284971,4.20135277,83.754,83.695,10.7529]
[1772192286172,4.20135277,83.752,83.693,4.28803512]
[1772192288772,10.7459,83.75,83.693,4.28803512]
[1772192289174,14.94725277,83.75,83.693,4.28803512]
[1772192290378,4.28578918,83.749,83.693,4.28803512]
[1772192290576,4.28578918,83.747,83.682,10.7545]
[1772192291675,4.28578918,83.736,83.677,4.34651277]
[1772192292077,9.78,83.753,83.647,18.03796483]
[1772192292078,4.28578918,83.725,83.661,4.34651277]
[1772192292275,4.28578918,83.719,83.648,4.34651277]
[1772192292582,4.28578918,83.736,83.648,4.34651277]
[1772192292773,4.28578918,83.749,83.651,4.34651277]
[1772192292975,4.28578918,83.749,83.687,4.34651277]
[1772192293984,4.28578918,83.766,83.687,4.34651277]
[1772192294476,4.28578918,83.766,83.691,4.34651277]
[1772192294679,10.7421,83.78,83.722,10.7494]
[1772192294981,4.28578918,83.77,83.715,4.34651277]
[1772192295481,4.28578918,83.788,83.715,4.34651277]
[1772192295980,4.28578918,83.771,83.699,10.7524]
[1772192296174,14.06578918,83.753,83.694,4.34651277]
[1772192296571,4.28578918,83.752,83.661,4.34651277]
[1772192297174,4.28578918,83.752,83.671,4.34651277]
[1772192297370,4.28578918,83.752,83.66,6.6519758]
[1772192297371,4.28578918,83.752,83.682,4.34651277]
[1772192298478,10.747,83.742,83.682,4.34651277]
[1772192298682,9.78,83.753,83.682,4.34651277]
[1772192298878,9.78,83.753,83.694,4.34651277]
[1772192300383,4.28578918,83.752,83.694,4.34651277]
[1772192300586,4.28578918,83.749,83.675,4.34651277]
[1772192300883,4.28578918,83.749,83.695,15.09941277]
[1772192301288,9.78,83.753,83.704,4.34651277]
[1772192301785,10.7474,83.738,83.682,4.34651277]
[1772192302885,10.7474,83.738,83.684,10.7543]
[1772192303182,4.28578918,83.745,83.684,15.10081277]
[1772192304073,10.7469,83.742,83.692,10.7533]
[1772192304373,4.28578918,83.741,83.684,4.34651277]
[1772192304775,4.28578918,83.729,83.667,4.34651277]
[1772192306279,10.7487,83.728,83.667,4.34651277]
[1772192306485,4.28578918,83.729,83.667,4.34651277]
[1772192307079,35.84,83.749,83.667,4.34651277]
[1772192307080,4.28578918,83.748,83.667,4.34651277]
[1772192307989,10.7486,83.729,83.675,4.34651277]
[1772192309078,10.7486,83.729,83.677,4.34651277]
[1772192309681,4.28578918,83.725,83.66,66.34651277]
[1772192309985,4.28578918,83.725,83.66,4.34651277]
[1772192310386,10.752,83.703,83.66,4.34651277]
[1772192310985,4.28578918,83.725,83.663,4.34651277]
[1772192311685,10.7493,83.724,83.67,10.756]
[1772192311986,10.7493,83.724,83.663,4.34651277]
[1772192312186,10.7493,83.724,83.67,10.7561]
[1772192312484,4.28578918,83.749,83.67,4.34651277]
[1772192313487,10.7473,83.739,83.69,10.7536]
[1772192314089,4.28578918,83.735,83.682,10.7545]
[1772192314386,4.28578918,83.735,83.67,4.34651277]
[1772192314987,4.28578918,83.735,83.68,10.7548]
[1772192315493,4.28578918,83.728,83.648,4.34651277]
[1772192315886,10.7503,83.716,83.668,10.7564]
[1772192316284,4.28578918,83.728,83.668,10.7564]
[1772192316480,10.7512,83.709,83.66,10.7574]
[1772192316885,4.28578918,83.728,83.66,10.7574]
[1772192317085,4.28578918,83.728,83.648,4.34651277]
[1772192317882,10.7506,83.714,83.669,10.7562]
[1772192318489,4.40864057,83.713,83.648,4.34651277]
[1772192319692,4.40864057,83.729,83.648,4.34651277]
[1772192320289,4.11893212,83.728,83.648,4.34651277]
[1772192320790,10.752,83.703,83.648,4.34651277]
[1772192321998,10.753,83.695,83.648,4.34651277]
[1772192322194,10.753,83.695,83.642,10.7597]
[1772192322195,4.11893212,83.694,83.642,4.3827327]
[1772192322395,6.6519758,83.69,83.627,4.3827327]
[1772192322699,10.7551,83.679,83.627,4.3827327]
[1772192323195,4.11893212,83.689,83.647,6.483e-05]
[1772192323995,10.7574,83.661,83.647,6.483e-05]
[1772192324300,4.11893212,83.706,83.647,4.38279753]
[1772192324801,4.11893212,83.706,83.647,6.483e-05]
[1772192326297,10.7517,83.705,83.656,4.3827327]
[1772192326497,4.11893212,83.706,83.656,4.3827327]
[1772192328103,4.11893212,83.706,83.647,6.483e-05]
[1772192328904,10.7534,83.692,83.647,6.483e-05]
[1772192331010,4.11893212,83.706,83.647,6.483e-05]
[1772192331303,4.11893212,83.723,83.647,6.483e-05]
[1772192331503,4.11893212,83.723,83.669,10.7562]
[1772192333002,10.7503,83.716,83.669,10.7562]
[1772192333307,4.11893212,83.723,83.66,15.1401327]
[1772192334210,4.11893212,83.723,83.647,6.483e-05]
[1772192334410,4.11893212,83.716,83.647,6.483e-05]
[1772192334812,10.7498,83.72,83.665,4.3827327]
[1772192335511,14.86753212,83.729,83.675,10.7554]
[1772192335716,4.11893212,83.729,83.665,4.3827327]
[1772192335916,4.11893212,83.746,83.69,10.7535]
[1772192336322,4.11893212,83.746,83.686,4.3827327]
[1772192336717,10.7478,83.735,83.687,10.7539]
[1772192336914,4.11893212,83.746,83.686,4.3827327]
[1772192337824,10.7478,83.736,83.686,15.1368327]
[1772192338025,4.11893212,83.746,83.686,4.3827327]
[1772192338720,4.11893212,83.746,83.7,10.7523]
[1772192338925,4.11893212,83.746,83.686,4.3827327]
[1772192339818,4.11893212,83.746,83.706,10.7515]
[1772192340124,4.11893212,83.765,83.707,4.3827327]
[1772192340325,6.6519758,83.78,83.707,4.3827327]
[1772192340526,14.86183212,83.774,83.707,4.3827327]
[1772192340825,4.11893212,83.773,83.707,4.3827327]
[1772192341121,4.11893212,83.773,83.623,167.4123]
[1772192341122,4.11893212,83.789,83.734,4.3827327]
[1772192341520,4.11893212,83.814,83.734,4.3827327]
[1772192341719,4.11893212,83.814,83.763,4.3827327]
[1772192341919,4.11893212,83.799,83.715,4.3827327]
[1772192342825,4.11893212,83.799,83.741,4.3827327]
[1772192343423,14.01,83.813,83.741,4.3827327]
[1772192343826,4.11893212,83.812,83.741,4.3827327]
[1772192344423,4.11893212,83.809,83.744,4.3827327]
[1772192344628,4.11893212,83.799,83.701,4.3827327]
[1772192344824,4.11893212,83.791,83.72,10.7497]
[1772192345129,4.11893212,83.791,83.72,4.3827327]
[1772192345530,4.11893212,83.781,83.721,10.7495]
[1772192346130,10.7422,83.779,83.721,10.7495]
[1772192346326,10.7422,83.779,83.721,15.1322327]
[1772192346632,10.7398,83.798,83.724,4.3827327]
[1772192347028,4.11893212,83.799,83.729,4.3827327]
[1772192347826,4.11893212,83.779,83.718,10.7499]
[1772192348130,4.11893212,83.779,83.718,15.1326327]
[1772192348429,10.7407,83.791,83.73,4.3827327]
[1772192348630,4.11893212,83.799,83.73,4.3827327]
[1772192349226,10.7412,83.787,83.731,4.3827327]
[1772192349632,4.11893212,83.779,83.701,4.3827327]
[1772192349825,10.7442,83.764,83.701,4.3827327]
[1772192350022,4.10603408,83.763,83.701,4.3827327]
[1772192351426,4.10603408,83.763,83.652,21.517]
[1772192351427,4.10603408,83.759,83.683,4.47108898]
[1772192352025,10.7466,83.745,83.683,4.47108898]
[1772192352222,4.10603408,83.759,83.683,4.47108898]
[1772192352620,4.10603408,83.746,83.685,10.7542]
[1772192352821,4.10603408,83.746,83.683,4.47108898]
[1772192354127,10.7476,83.737,83.684,10.7543]
[1772192354327,4.10603408,83.746,83.683,4.47108898]
[1772192355637,4.10603408,83.768,83.683,4.47108898]
[1772192355829,4.10603408,83.759,83.683,4.47108898]
[1772192356137,4.10603408,83.738,83.667,10.7565]
[1772192356430,4.10603408,83.738,83.666,4.47108898]
[1772192357325,4.10603408,83.729,83.666,4.47108898]
[1772192357827,4.10603408,83.728,83.658,10.7576]
[1772192358030,4.10603408,83.709,83.633,4.47108898]
[1772192358229,4.10603408,83.688,83.636,10.7605]
[1772192358435,6.66136813,83.71,83.602,21.5297]
[1772192358436,4.10603408,83.712,83.637,4.47108898]
[1772192359540,4.10603408,83.699,83.633,4.47108898]
[1772192360341,10.7537,83.69,83.635,4.47108898]
[1772192360637,4.10603408,83.699,83.635,4.47108898]
[1772192361237,10.7527,83.697,83.635,4.47108898]
[1772192361435,4.10603408,83.699,83.635,4.47108898]
[1772192362832,4.10603408,83.699,83.618,4.47108898]
[1772192363634,4.10603408,83.699,83.622,4.47108898]
[1772192364236,4.10603408,83.687,83.629,10.7614]
[1772192365645,10.7554,83.676,83.622,4.47108898]
[1772192366240,10.7554,83.676,83.625,15.23288898]
[1772192366439,10.7554,83.676,83.626,4.47108898]
[1772192366639,10.7558,83.673,83.613,4.47108898]
[1772192367439,10.7563,83.67,83.617,10.7629]
[1772192367835,4.10603408,83.669,83.617,10.7629]
[1772192368837,4.10603408,83.666,83.617,10.7629]
[1772192369044,4.10603408,83.666,83.573,299.0]
[1772192369045,4.10603408,83.666,83.596,4.47108898]
[1772192369438,14.86383408,83.658,83.596,4.47108898]
[1772192370647,10.7582,83.654,83.606,10.7643]
[1772192370946,10.7582,83.654,83.596,4.47108898]
[1772192371244,10.7582,83.654,83.598,15.23638898]
[1772192371440,10.7582,83.654,83.599,4.47108898]
[1772192371643,14.86423408,83.654,83.599,4.47108898]
[1772192372047,4.10603408,83.651,83.585,10.7671]
[1772192372252,4.10603408,83.651,83.576,4.47108898]
[1772192372448,4.10603408,83.668,83.591,4.47108898]
[1772192372659,4.10603408,83.668,83.615,4.47108898]
[1772192373946,4.10603408,83.668,83.623,10.7621]
[1772192374147,4.10603408,83.668,83.591,4.47108898]
[1772192374348,4.10603408,83.659,83.591,4.47108898]
[1772192374548,4.10603408,83.659,83.56,12.0396969]
[1772192374745,35.84,83.639,83.561,4.47108898]
[1772192375052,4.10603408,83.645,83.561,4.47108898]
[1772192375253,4.10603408,83.644,83.581,4.47108898]
[1772192375749,4.10603408,83.669,83.608,10.7641]
[1772192376142,4.10603408,83.669,83.601,4.47108898]
[1772192376143,4.10603408,83.686,83.601,4.47108898]
[1772192376345,4.10603408,83.686,83.621,4.47108898]
[1772192377152,4.10603408,83.681,83.621,4.47108898]
[1772192377551,4.10603408,83.681,83.591,4.47108898]
[1772192377947,10.7566,83.667,83.601,10.765]
[1772192378148,10.7566,83.667,83.602,4.32747595]
[1772192378951,10.7578,83.658,83.602,4.32747595]
[1772192379652,4.2118155,83.665,83.605,4.32747595]
[1772192380250,15.10321979,83.664,83.605,4.32747595]
[1772192380445,4.34621979,83.663,83.605,4.32747595]
[1772192380957,4.34621979,83.663,83.607,4.53373583]
[1772192381451,10.7595,83.645,83.59,4.53373583]
[1772192381651,4.34621979,83.659,83.59,4.53373583]
[1772192382855,10.7592,83.647,83.59,4.53373583]
[1772192383964,10.7592,83.647,83.591,10.7663]
[1772192384162,4.34621979,83.678,83.592,4.53373583]
[1772192384355,4.34621979,83.678,83.611,4.53373583]
[1772192384659,21.4965,83.732,83.611,4.53373583]
[1772192384660,35.84,83.713,83.611,4.53373583]
[1772192384860,4.34621979,83.712,83.611,4.53373583]
[1772192385758,10.7542,83.686,83.637,10.7604]
[1772192386064,4.34621979,83.696,83.632,4.53373583]
[1772192386959,10.7551,83.679,83.632,4.53373583]
[1772192388359,4.34621979,83.686,83.633,10.7609]
[1772192388962,4.34621979,83.686,83.625,10.7619]
[1772192389266,4.34621979,83.686,83.615,4.53373583]
[1772192389960,10.7571,83.663,83.617,10.7629]
[1772192390160,4.34621979,83.686,83.615,4.53373583]
[1772192390665,177.97324946,83.744,83.564,167.5304]
[1772192390666,4.34621979,83.696,83.637,4.53373583]
[1772192390856,4.34621979,83.696,83.601,4.53373583]
[1772192391662,10.7569,83.665,83.607,4.53373583]
[1772192391964,4.34621979,83.665,83.607,4.53373583]
[1772192392666,10.7577,83.658,83.607,4.53373583]
[1772192392860,4.34621979,83.657,83.607,4.53373583]
[1772192393366,10.7584,83.653,83.607,4.53373583]
[1772192393957,4.34621979,83.657,83.607,4.53373583]
[1772192395368,10.7581,83.655,83.607,4.53373583]
[1772192395965,4.34621979,83.655,83.562,4.53373583]
[1772192396467,10.7607,83.635,83.581,4.53373583]
[1772192396667,4.34621979,83.655,83.581,4.53373583]
[1772192397063,15.10591979,83.643,83.581,4.53373583]
[1772192397373,4.34621979,83.642,83.581,4.53373583]
[1772192397762,4.34621979,83.642,83.5,36.84770264]
[1772192397763,4.34621979,83.671,83.601,4.53373583]
[1772192398162,4.34621979,83.669,83.601,4.53373583]
[1772192398568,4.34621979,83.65,83.584,4.53373583]
[1772192400070,4.34621979,83.668,83.613,10.7635]
[1772192400269,4.34621979,83.668,83.607,4.53373583]
[1772192400471,4.34621979,83.689,83.63,4.53373583]
[1772192401274,15.10001979,83.689,83.633,10.7609]
[1772192401463,4.34621979,83.708,83.63,4.53373583]
[1772192402369,4.34621979,83.705,83.638,4.53373583]
[1772192402572,4.34621979,83.703,83.621,4.53373583]
[1772192402774,4.34621979,83.689,83.621,4.53373583]
[1772192402974,4.34621979,83.678,83.621,4.53373583]
[1772192403574,10.7556,83.675,83.622,10.7623]
[1772192405077,4.34621979,83.697,83.621,4.53373583]
[1772192405676,4.34621979,83.697,83.643,4.53373583]
[1772192406175,15.09681979,83.714,83.661,10.7573]
[1772192406375,4.34621979,83.714,83.659,4.53373583]
[1772192406875,4.34621979,83.714,83.642,4.53373583]
[1772192407084,4.34621979,83.709,83.625,4.53373583]
[1772192407283,4.34621979,83.707,83.625,4.53373583]
[1772192407585,10.7537,83.69,83.639,10.76]
[1772192407782,6.66136813,83.71,83.625,4.53373583]
[1772192407983,4.34621979,83.725,83.656,4.53373583]
[1772192408888,10.7495,83.722,83.672,10.7558]
[1772192409085,4.34621979,83.725,83.656,4.53373583]
[1772192409277,4.34621979,83.749,83.656,4.53373583]
[1772192409478,4.34621979,83.749,83.688,10.7538]
[1772192409780,4.34621979,83.749,83.689,4.53373583]
[1772192409977,10.7471,83.741,83.691,10.7534]
[1772192410176,4.34621979,83.749,83.691,10.7534]
[1772192411882,4.12693269,83.747,83.691,10.7534]
[1772192412189,4.12693269,83.747,83.689,4.53373583]
[1772192412994,10.7482,83.733,83.689,4.53373583]
[1772192413884,10.7482,83.733,83.682,10.7546]
[1772192414685,4.12693269,83.725,83.652,4.15688191]
[1772192415686,10.7506,83.714,83.663,10.7571]
[1772192415889,4.12693269,83.713,83.611,4.15688191]
[1772192416386,4.12693269,83.694,83.638,10.7602]
[1772192416691,4.12693269,83.694,83.631,4.15688191]
[1772192416692,4.12693269,83.713,83.631,4.15688191]
[1772192417289,4.12693269,83.713,83.653,4.15688191]
[1772192417887,10.7508,83.712,83.653,4.15688191]
[1772192419097,4.12693269,83.713,83.653,4.15688191]
[1772192419990,10.7516,83.706,83.653,4.15688191]
[1772192421091,4.12693269,83.713,83.653,4.15688191]
[1772192423093,10.752,83.703,83.653,4.15688191]
[1772192423496,4.12693269,83.713,83.654,14.91508191]
[1772192423894,4.12693269,83.704,83.654,4.15688191]
[1772192424499,4.12693269,83.704,83.658,10.7577]
[1772192424893,4.12693269,83.729,83.654,4.15688191]
[1772192425797,10.7505,83.715,83.654,4.15688191]
[1772192426191,4.12693269,83.722,83.67,4.15688191]
[1772192426501,4.12693269,83.689,83.623,4.15688191]
[1772192428103,4.12693269,83.685,83.623,4.15688191]
[1772192429193,4.12693269,83.699,83.623,4.15688191]
[1772192429689,4.12693269,83.679,83.623,4.15688191]
[1772192430600,4.12693269,83.679,83.631,10.7611]
[1772192431092,4.12693269,83.679,83.623,4.15688191]
[1772192431295,4.12693269,83.679,83.592,190.16169936]
[1772192431296,10.7561,83.671,83.625,4.15688191]
[1772192431497,4.12693269,83.679,83.625,4.15688191]
[1772192432000,10.7543,83.685,83.631,4.15688191]
[1772192433802,4.12693269,83.693,83.631,4.15688191]
[1772192434901,4.12693269,83.689,83.631,14.91808191]
[1772192436004,10.7551,83.679,83.631,14.91808191]